[Event "German Masters 2022"]
[Site "Magdeburg"]
[Date "2022.08.18"]
[Round "3.4"]
[White "Svane, Frederik"]
[Black "Svane, Rasmus"]
[Result "1-0"]
[ECO "C50"]
[WhiteElo "2521"]
[BlackElo "2649"]
[Annotator "TA"]
[PlyCount "141"]
[EventDate "2022.08.16"]
[EventType "tourn"]
[EventCountry "GER"]
[SourceTitle "playchess.com"]
[Source "ChessBase"]
[SourceQuality "1"]
[TimeControl "40/5400+30:1800+30"]

{[%evp 12,141,27,9,12,0,0,14,14,8,15,14,21,20,21,22,26,24,26,0,10,0,0,0,0,0,27,0,44,0,31,0,34,20,0,20,24,0,26,18,53,55,64,27,80,73,84,93,88,68,80,79,101,121,108,94,123,120,135,118,172,190,181,160,227,192,176,162,187,183,283,283,312,317,295,283,288,284,477,468,389,343,547,443,433,433,369,364,323,0,328,0,265,167,521,490,29967,29969,29974,29975,29975,29977,29975,29976,29977,29978,29977,29974,29978,29973,29973,29974,29974,29975,29975,29976,29976,29977,29977,29978,29978,29979,29979,29980,29980,29981,29981,29982,29982,29983,29982,29983]} 1. e4 {[%emt 0:00:15]} e5 {[%emt 0:00:35]} 2. Nf3 {[%emt 0:00:09]} Nc6 {[%emt 0:00:07]} 3. Bc4 {[%emt 0:00:05]} Bc5 {[%emt 0:00:40]} 4. Nc3 {[%emt 0:00:06]} Nf6 {[%emt 0:00:59]} 5. d3 {[%emt 0:00:07]} h6 {[%emt 0:02:51]} 6. O-O {[%emt 0:00:09]} O-O {[%emt 0:02:54]} 7. h3 {[%emt 0:00:16]} a6 {[%emt 0:07:59] C50: Hungarian Defence and Giuoco Pianissimo.} 8. Be3 {[%emt 0:00:17]} d6 {[%emt 0:02:52]} 9. Bxc5 {[%emt 0:00:22] 9.a4 injects fresh life into this line.} dxc5 {[%emt 0:00:05] The position is equal.} 10. a4 {[%emt 0:00:05]} Qd6 {[%emt 0:05:52]} 11. Nd2 {[%emt 0:00:07][%cal Bf3d2,Bd2c4,Bc4e3][%mdl 32] [#]} Be6 $146 {[%emt 0:06:53]} ({Predecessor:} 11... Nd4 12. Ne2 Re8 13. Ng3 Bd7 14. c3 Nc6 15. a5 Ne7 16. Qf3 Be6 17. Bxe6 Qxe6 {½-½ (32) Demchenko,A (2654)-Sunilduth Lyna,N (2658) Warsaw 2021}) 12. Bxe6 {[%emt 0:07:42]} Qxe6 {[%emt 0:03:55]} 13. Nc4 {[%emt 0:00:13]} b6 {[%emt 0:06:52]} 14. Ne3 {[%emt 0:09:03]} Nd4 {[%emt 0:08:17]} 15. Ne2 {[%emt 0:12:41]} Rad8 {[%emt 0:10:20]} 16. f4 {[%emt 0:11:05]} exf4 {[%emt 0:08:42]} 17. Nxf4 {[%emt 0:00:20]} Qe5 {[%emt 0:02:08]} 18. Qe1 {[%emt 0:13:26]} Ne6 {[%emt 0:11:44]} 19. Ne2 {[%emt 0:00:42]} (19. Qg3 {with more complications.} Kh7 20. Nc4 Qd4+ 21. Qe3) 19... Nd4 {[%emt 0:03:26] Against Rf5} (19... c4 $5 20. Nxc4 Qc5+ 21. Kh1 Nxe4 $11) 20. Nf4 {[%emt 0:14:30]} Ne6 {[%emt 0:00:06]} 21. Ne2 {[%emt 0:00:06] And now Rf5 would win.} Nd4 {[%emt 0:00:03] Inhibits Rf5.} 22. b3 {[%emt 0:11:00]} Nxc2 {[%emt 0:05:46]} 23. Nxc2 {[%emt 0:00:09]} Rxd3 {[%emt 0:00:05]} 24. Rd1 {[%emt 0:07:11]} (24. Nc1 $5 {[%cal Rc1d3]} Rd7 25. Ra2 $11) 24... Qxe4 {[%emt 0:02:56]} 25. Nc1 {[%emt 0:06:36]} Qxe1 {[%emt 0:01:29]} 26. Rfxe1 {[%emt 0:00:07]} Rc3 {[%emt 0:01:49]} 27. Na1 {[%emt 0:00:03]} Rg3 {[%emt 0:03:24]} (27... c4 $11) 28. Re7 $36 {[%emt 0:00:42][%mdl 2048] Keeping Black busy.} Rc8 {[%emt 0:00:12][%cal Oc5c4]} 29. Ne2 {[%emt 0:00:28]} Rg5 {[%emt 0:00:20]} 30. Nc3 {[%emt 0:01:03]} Kf8 {[%emt 0:00:11]} 31. Re3 {[%emt 0:00:12] White is more active.} Re8 {[%emt 0:00:29]} 32. Nc2 {[%emt 0:00:35]} Rge5 {[%emt 0:00:50]} 33. Kf2 {[%emt 0:00:09]} h5 {[%emt 0:01:13]} 34. Rxe5 {[%emt 0:00:44]} Rxe5 {[%emt 0:00:02]} 35. Ne3 {[%emt 0:00:06]} Ne4+ {[%emt 0:00:43]} (35... Re6 $16 {was necessary.} 36. Kf3 g6) 36. Nxe4 $18 {[%emt 0:00:07]} Rxe4 {[%emt 0:00:04][%mdl 4096] Endgame KRN-KR} 37. Kf3 {[%emt 0:01:03]} f5 {[%emt 0:01:32]} (37... Re6 $16 38. a5 Rf6+ 39. Ke4 Ke8) 38. Nxf5 {[%emt 0:05:11]} Rb4 {[%emt 0:00:03]} 39. Rd7 {[%emt 0:00:14]} g5 {[%emt 0:00:52]} 40. Ng7 {[%emt 0:00:56]} Rxb3+ {[%emt 0:00:37] [#]} (40... g4+ {is a better defense.} 41. hxg4 Rxb3+ 42. Kf4 Rb4+ 43. Ke5 Rxg4) 41. Ke4 $1 {[%emt 0:30:10]} Rg3 {[%emt 0:02:40]} 42. Nxh5 {[%emt 0:00:00]} (42. Rxc7 Rxg2 43. Nxh5 g4 44. hxg4 Rxg4+ 45. Nf4 Rg1 $18) 42... Rxg2 {[%emt 0:00:23]} 43. Nf6 {[%emt 0:00:00] White wants to mate with Kf5.} ({Don't take} 43. Rxc7 g4 44. h4 g3) 43... Rf2 {[%emt 0:04:22]} 44. Ke5 {[%emt 0:00:00]} b5 $2 {[%emt 0:02:31]} (44... Re2+ {might work better.} 45. Kf5 Re7 46. Rd8+ (46. Kxg5 Rxd7 47. Nxd7+ Ke7 $18) 46... Kg7) 45. axb5 {[%emt 0:00:00]} axb5 {[%emt 0:00:09]} 46. Rxc7 {[%emt 0:00:00] Strongly threatening Ke6.} c4 {[%emt 0:04:40]} (46... b4 $142 47. Ne4 Rf7 48. Rxc5 Rb7) 47. Nh7+ {[%emt 0:00:00]} Ke8 {[%emt 0:01:55]} 48. Nxg5 {[%emt 0:00:00]} Re2+ {[%emt 0:04:36]} 49. Kf6 {[%emt 0:00:00]} Rf2+ {[%emt 0:00:32]} 50. Ke5 {[%emt 0:00:00]} Re2+ {[%emt 0:00:03]} 51. Kf6 {[%emt 0:00:00]} Rf2+ $1 {[%emt 0:03:54]} 52. Kg6 {[%emt 0:00:00] Threatens to win with h4.} Rc2 $2 {[%emt 0:00:47] [#]} (52... Rf4 {is a better chance.}) 53. Rb7 $1 {[%emt 0:00:00] Hoping for h4.} b4 {[%emt 0:08:56]} (53... c3 $18 54. Rxb5 Rf2) 54. Rxb4 {[%emt 0:00:00] White mates.} Kd7 {[%emt 0:00:03]} 55. h4 {[%emt 0:01:50][%cal Bh3h4,Bh4h5,Bh5h6,Bh6h7][%mdl 32]} Kc6 {[%emt 0:00:39]} 56. h5 {[%emt 0:00:10]} Kd5 {[%emt 0:01:22]} 57. Rb5+ {[%emt 0:02:20]} Kd4 {[%emt 0:00:04]} 58. h6 {[%emt 0:00:32]} Ra2 {[%emt 0:00:40]} 59. h7 {[%emt 0:00:16]} Ra8 {[%emt 0:00:37]} 60. Nf3+ {[%emt 0:03:41]} Ke3 {[%emt 0:00:13] [#]} 61. Rc5 $1 {[%emt 0:00:04]} Kxf3 {[%emt 0:00:37]} 62. Rxc4 {[%emt 0:00:04] KR-KR} Ra6+ {[%emt 0:00:27]} 63. Kg5 {[%emt 0:00:07]} Ra5+ {[%emt 0:00:30]} 64. Kh4 {[%emt 0:00:28]} Ra8 {[%emt 0:00:25]} 65. Rg4 {[%emt 0:00:28]} Rh8 {[%emt 0:01:22]} 66. Rg7 {[%emt 0:00:03]} Kf4 {[%emt 0:00:09]} 67. Kh5 {[%emt 0:00:04]} Kf5 {[%emt 0:00:46]} 68. Kh6 {[%emt 0:00:18]} Ra8 {[%emt 0:00:26]} 69. Rg8 {[%emt 0:00:05]} Ra6+ {[%emt 0:00:07]} 70. Kh5 {[%emt 0:00:06]} Ra2 {[%emt 0:00:43]} 71. Rf8+ {[%emt 0:00:07] Weighted Error Value: White=0.21 (precise) /Black=0.40} 1-0

[Event "German Masters 2022"]
[Site "Magdeburg"]
[Date "2022.08.18"]
[Round "3.5"]
[White "Braun, Arik"]
[Black "Huschenbeth, Niclas"]
[Result "1-0"]
[ECO "D04"]
[WhiteElo "2594"]
[BlackElo "2610"]
[Annotator "TA"]
[PlyCount "127"]
[EventDate "2022.08.16"]
[EventType "tourn"]
[EventCountry "GER"]
[SourceTitle "playchess.com"]
[Source "ChessBase"]
[SourceQuality "1"]
[TimeControl "40/5400+30:1800+30"]

{[%evp 9,127,0,11,-27,35,37,41,42,41,40,60,50,61,50,42,43,42,47,56,31,32,22,35,22,18,2,7,0,0,0,0,0,0,0,0,0,0,0,0,-27,-33,-40,-10,-15,0,0,61,72,71,81,132,104,104,116,241,242,241,245,246,243,238,239,299,257,227,252,235,0,186,0,344,332,533,531,508,489,472,153,478,152,468,439,456,472,443,401,469,443,449,364,348,340,458,465,507,404,404,404,389,388,650,660,632,629,620,575,29971,29970,29975,29976,29973,29975,29973,29976,29973,29977,29977,29978,29980,29980]} 1. d4 {[%emt 0:00:04]} d5 {[%emt 0:00:03]} 2. Nf3 {[%emt 0:00:07]} Nf6 {[%emt 0:00:05]} 3. e3 {[%emt 0:00:06]} c5 {[%emt 0:00:05]} 4. Nbd2 {[%emt 0:00:08]} cxd4 {[%emt 0:00:09]} 5. exd4 {[%emt 0:00:05]} Qc7 {[%emt 0:00:19] [#]} 6. Ne5 $146 {[%emt 0:09:35] D04: Colle System.} ({Predecessor:} 6. Bd3 Nc6 7. c3 Bg4 8. Qa4 Bd7 9. Qc2 Rc8 10. a3 Bg4 11. Qa4 e6 12. Ne5 Bh5 13. Nf1 {0-1 (74) Naroditsky,D (2623)-Lenderman,A (2607) Saint Louis 2021}) 6... a6 {[%emt 0:29:38]} ({Black should play} 6... Nc6 $11 7. Bb5 e6) 7. c3 $14 {[%emt 0:12:50]} Nc6 {[%emt 0:05:23]} 8. Ndf3 {[%emt 0:00:34] White is slightly better.} Bf5 {[%emt 0:03:19]} 9. Bf4 {[%emt 0:03:53][%cal Oe5g6]} Qb6 {[%emt 0:01:23]} 10. Qb3 {[%emt 0:03:05]} Nd7 {[%emt 0:13:32]} 11. Nxd7 {[%emt 0:10:52] White is more active.} Qxb3 {[%emt 0:00:05]} 12. axb3 {[%emt 0:00:03]} Bxd7 {[%emt 0:00:39]} 13. b4 {[%emt 0:03:07]} Na7 {[%emt 0:07:16] Inhibits b5.} 14. Ra5 {[%emt 0:06:19]} e6 {[%emt 0:10:08]} 15. Kd2 {[%emt 0:05:31][%cal Of1a6] Strongly threatening Bxa6!} Bb5 {[%emt 0:04:34]} 16. Bxb5+ {[%emt 0:01:08]} Nxb5 {[%emt 0:00:04]} 17. Rha1 {[%emt 0:00:17]} (17. Kc2 {is interesting.} Rc8 18. Kb3 Be7 19. h3) 17... Bd6 {[%emt 0:00:42]} 18. Rxb5 {[%emt 0:03:10]} Bxf4+ {[%emt 0:00:05]} 19. Kc2 {[%emt 0:00:22]} Rb8 {[%emt 0:02:23]} 20. Rba5 {[%emt 0:00:09]} Bc7 {[%emt 0:01:06]} 21. R5a4 {[%emt 0:01:05]} Kd7 {[%emt 0:06:34]} 22. Ne1 {[%emt 0:03:20]} f6 {[%emt 0:00:04]} 23. Nd3 {[%emt 0:00:18]} e5 {[%emt 0:01:20]} 24. g3 {[%emt 0:05:48]} Kc6 {[%emt 0:02:15]} 25. Kd2 {[%emt 0:01:47]} g5 {[%emt 0:02:01]} 26. Rc1 {[%emt 0:06:45]} e4 {[%emt 0:04:30]} 27. Nc5 {[%emt 0:00:06]} Rbe8 {[%emt 0:00:50]} (27... Bb6 $11) 28. c4 $1 {[%emt 0:02:40]} dxc4 {[%emt 0:00:22]} 29. Rxc4 {[%emt 0:00:41]} Kd5 {[%emt 0:01:46]} ({Better is} 29... Bb6) 30. Rc2 {[%emt 0:00:28]} Bb6 {[%emt 0:01:41]} 31. Nxb7 {[%emt 0:00:37]} Bxd4 {[%emt 0:00:32]} (31... Ra8 $16) 32. Ra5+ $18 {[%emt 0:01:41]} ({Resist} 32. Rxa6 $6 Re7 33. Ra5+ Ke6 $16) 32... Ke6 {[%emt 0:00:02]} 33. Rxa6+ {[%emt 0:00:06]} Kd5 {[%emt 0:01:37]} 34. Ra5+ {[%emt 0:02:50]} Ke6 {[%emt 0:00:02]} 35. Rc6+ {[%emt 0:00:07]} Ke7 {[%emt 0:02:17]} 36. Rc7+ {[%emt 0:00:11]} Ke6 {[%emt 0:00:01]} 37. Ra6+ {[%emt 0:00:50]} Ke5 {[%emt 0:01:00]} 38. Ra5+ {[%emt 0:02:01]} Ke6 {[%emt 0:00:03]} 39. Rc6+ $2 {[%emt 0:00:06]} (39. Nc5+ Kf5 40. Nd7+ Kg4 41. Rd5) 39... Ke7 $1 {[%emt 0:00:08]} 40. Nd6 {[%emt 0:00:37] Inhibits Rc8. Nf5+ is the strong threat.} Rd8 $2 {[%emt 0:01:29]} (40... Kd7) 41. Nf5+ {[%emt 0:31:28]} Kf7 {[%emt 0:30:15]} 42. Rc7+ {[%emt 0:06:21]} Kg6 {[%emt 0:00:05]} 43. Rg7+ {[%emt 0:00:23]} Kh5 {[%emt 0:00:02] [#]} 44. Ke2 $2 {[%emt 0:01:54]} ({Worse is} 44. Nxd4 Rxd4+ 45. Kc2 (45. Kc3 Rd3+ 46. Kc4 Rf3 $11) 45... Rxb4 $11) (44. h3 $1 $18 {[%csl Gh3][%cal Rg3g4] is the precise move to win.} Bxf2+ 45. Kc2 Bxg3 46. Nxg3+ Kh4 47. Nxe4) 44... Bxf2 $2 {[%emt 0:01:58]} (44... Kg4 $16 {is tougher.} 45. h4 h6) 45. Kxf2 {[%emt 0:03:42] Hoping for h3.} Rd2+ {[%emt 0:00:00]} 46. Ke3 {[%emt 0:00:00]} Rxh2 {[%emt 0:00:00]} 47. Re7 {[%emt 0:00:00]} Kg4 {[%emt 0:00:00]} 48. Rxe4+ {[%emt 0:00:00]} Kh3 {[%emt 0:00:00]} 49. Ra6 {[%emt 0:00:00]} Rxb2 {[%emt 0:00:00]} 50. Rxf6 {[%emt 0:00:00]} h5 {[%emt 0:00:00]} 51. Rg6 {[%emt 0:00:00]} g4 {[%emt 0:00:00]} 52. Kf4 {[%emt 0:00:00]} Rf2+ {[%emt 0:00:00]} 53. Kg5 {[%emt 0:00:00]} Rb8 {[%emt 0:02:35]} 54. Re5 {[%emt 0:00:00]} Rf8 $2 {[%emt 0:02:24]} (54... Rxb4 55. Kxh5 Rfb2) 55. b5 {[%emt 0:00:00]} h4 {[%emt 0:00:12]} 56. Rh6 {[%emt 0:00:00]} Rg8+ {[%emt 0:00:09]} 57. Kf6 {[%emt 0:00:00]} Rxf5+ {[%emt 0:01:09]} 58. Kxf5 {[%emt 0:00:00] White mates.} Kxg3 {[%emt 0:00:02]} 59. Re3+ {[%emt 0:00:00]} Kf2 {[%emt 0:00:07]} 60. Rb3 {[%emt 0:00:00]} g3 {[%emt 0:01:19]} 61. Rxh4 {[%emt 0:00:00]} g2 {[%emt 0:00:19]} 62. Rh2 {[%emt 0:00:00]} Kg1 {[%emt 0:00:22] [#]} 63. Rxg2+ $3 {[%emt 0:00:00]} Kxg2 {[%emt 0:00:05]} (63... Rxg2 64. b6) 64. b6 {[%emt 0:00:00] Weighted Error Value: White=0.29 (precise) /Black=0.43} 1-0

[Event "German Masters 2022"]
[Site "Magdeburg"]
[Date "2022.08.19"]
[Round "4.1"]
[White "Keymer, Vincent"]
[Black "Huschenbeth, Niclas"]
[Result "1/2-1/2"]
[ECO "D32"]
[WhiteElo "2686"]
[BlackElo "2610"]
[Annotator "TA"]
[PlyCount "131"]
[EventDate "2022.08.16"]
[EventType "tourn"]
[EventCountry "GER"]
[SourceTitle "playchess.com"]
[Source "ChessBase"]
[SourceQuality "1"]
[TimeControl "40/5400+30:1800+30"]

{[%evp 11,131,37,32,49,59,50,53,55,54,51,40,45,58,52,56,46,50,48,79,46,80,88,122,79,67,89,78,56,56,49,57,47,105,99,96,0,0,-47,0,0,0,0,0,0,0,0,0,0,10,0,23,0,0,0,0,0,0,0,0,0,0,0,0,0,0,0,0,0,8,8,83,84,140,147,141,85,84,66,81,87,238,231,333,168,151,129,136,0,0,0,0,0,0,0,0,0,0,0,0,0,0,0,0,0,0,0,0,0,0,0,0,0,0,0,0,0,0,0,0,0,0,0]} 1. c4 {[%emt 0:00:04]} e6 {[%emt 0:01:11]} 2. Nc3 {[%emt 0:00:47]} d5 {[%emt 0:00:27]} 3. d4 {[%emt 0:00:03]} c5 {[%emt 0:00:15]} 4. cxd5 {[%emt 0:00:28]} cxd4 {[%emt 0:00:16]} 5. Qxd4 {[%emt 0:00:05]} Nc6 {[%emt 0:00:18]} 6. Qd1 {[%emt 0:00:10]} exd5 {[%emt 0:00:05]} 7. Qxd5 {[%emt 0:00:04] D32: Tarrasch Defence: Sidelines and lines without g3.} Bd6 {[%emt 0:00:12]} 8. g3 {[%emt 0:04:38]} Nf6 {[%emt 0:00:06]} 9. Qd1 {[%emt 0:15:24] White is slightly better.} O-O {[%emt 0:00:06][%cal Od8b6] [#]} 10. Bg2 $146 {[%emt 0:00:02]} ({Predecessor:} 10. Nf3 Bb4 11. Qxd8 Rxd8 12. Bd2 Be6 13. Bg2 Rac8 14. O-O Ne5 15. Be3 Bxc3 16. bxc3 Nxf3+ 17. Bxf3 {½-½ (38) Schenning,A (2007)-Latal,F (2136) ICCF email 2017}) 10... Qe7 {[%emt 0:00:06]} 11. Nf3 {[%emt 0:00:56]} Rd8 {[%emt 0:00:05][%cal Od6g3]} 12. Qc2 {[%emt 0:01:58]} Nb4 {[%emt 0:01:37]} 13. Qb1 {[%emt 0:00:58]} Bc5 {[%emt 0:17:13][%cal Oc5f2]} 14. O-O {[%emt 0:01:35]} h6 {[%emt 0:02:21]} 15. Bf4 {[%emt 0:17:47]} g5 {[%emt 0:25:57]} 16. Bc1 {[%emt 0:06:31]} (16. Be5 $2 Ng4 17. Qe4 f5 $19) 16... a5 {[%emt 0:06:10]} 17. a3 {[%emt 0:14:09]} Nc6 {[%emt 0:02:00]} 18. h4 {[%emt 0:06:04]} g4 {[%emt 0:01:08]} 19. Nd2 {[%emt 0:01:37] Hoping for Nb3.} Nd4 {[%emt 0:06:38] Inhibits Nb3.} 20. Nde4 {[%emt 0:01:12]} Bf5 {[%emt 0:05:33]} 21. Bxh6 {[%emt 0:05:12]} Nxe2+ {[%emt 0:07:08]} 22. Nxe2 $16 {[%emt 0:00:04]} Nxe4 {[%emt 0:00:26]} 23. Qe1 {[%emt 0:04:01]} ({White should try} 23. Qc1 $16) 23... Rd3 $11 {[%emt 0:11:38]} 24. Be3 {[%emt 0:03:11]} (24. Kh2 $11) 24... Bxe3 {[%emt 0:02:41]} (24... Rxe3 $15 25. fxe3 Bxe3+ 26. Kh2 Bd2) 25. fxe3 {[%emt 0:00:03]} Qe5 {[%emt 0:00:30]} 26. Nf4 {[%emt 0:01:48]} Rd6 {[%emt 0:01:32]} 27. Rd1 {[%emt 0:08:20]} Rxd1 {[%emt 0:00:42]} 28. Qxd1 {[%emt 0:00:04]} Nxg3 {[%emt 0:00:13]} 29. Re1 {[%emt 0:01:20]} Rc8 {[%emt 0:01:47]} 30. Qd4 {[%emt 0:00:50]} Re8 {[%emt 0:03:03]} 31. Kf2 {[%emt 0:02:16]} Ne4+ {[%emt 0:01:10]} 32. Bxe4 {[%emt 0:00:05]} Bxe4 {[%emt 0:00:07]} 33. Rc1 {[%emt 0:02:00][%cal Oc1c8]} Bc6 {[%emt 0:00:53]} (33... g3+ 34. Kxg3 Bc6 35. Kh2 $16) (33... Qe7 $5 34. Kg3 Bf5 $11) 34. Qxe5 {[%emt 0:02:20]} Rxe5 {[%emt 0:00:01][%mdl 4096] Endgame KRB-KRN} 35. Rc3 {[%emt 0:00:05]} Rb5 {[%emt 0:01:47]} 36. b3 {[%emt 0:00:29]} Bf3 {[%emt 0:01:39]} 37. Nd3 {[%emt 0:00:23]} Kg7 {[%emt 0:01:13]} 38. Kg3 {[%emt 0:00:46]} Kf6 {[%emt 0:00:14]} 39. a4 {[%emt 0:01:12]} Rd5 {[%emt 0:00:29]} 40. Nf2 {[%emt 0:00:10]} Kf5 {[%emt 0:00:57]} (40... Re5 $11) 41. Rc7 $16 {[%emt 0:08:48][%csl LRb7,LRf7]} b5 {[%emt 0:20:11]} (41... Kg6 $142) 42. Rxf7+ {[%emt 0:03:58]} Ke6 {[%emt 0:00:04]} 43. Rc7 {[%emt 0:03:33]} (43. Ra7 $142) 43... Re5 {[%emt 0:03:24]} 44. Rc8 {[%emt 0:02:40]} (44. Nxg4 Bxg4 45. Kxg4 Rxe3) 44... Kd7 {[%emt 0:04:07] Inhibits Re8.} 45. Rc3 {[%emt 0:00:06]} b4 $2 {[%emt 0:00:36]} (45... bxa4 $16 46. bxa4 Kd6) 46. Nxg4 $18 {[%emt 0:05:36]} ({But not} 46. Rd3+ $6 Rd5) 46... Rf5 {[%emt 0:01:10]} (46... Bxg4 $142 47. Rd3+ Ke6 48. Kxg4 Re4+ 49. Kg3 Re5) 47. Rd3+ {[%emt 0:02:50]} (47. Rc4 $142 {aiming for e4.} Be2 48. Rc2) 47... Ke6 {[%emt 0:00:01]} 48. Nf2 {[%emt 0:01:42] Prevents Be4. e4 is the strong threat.} Be2 {[%emt 0:00:48] [#] White must now prevent ...Rf3+.} 49. Rd4 {[%emt 0:02:43]} (49. Rd8 $1 $16) 49... Rf3+ $11 {[%emt 0:00:13] The position is equal.} 50. Kg2 {[%emt 0:00:04]} Rxe3 {[%emt 0:00:03]} 51. Re4+ {[%emt 0:00:12]} Rxe4 {[%emt 0:00:04]} 52. Nxe4 {[%emt 0:00:03] KB-KN} Kd5 {[%emt 0:03:18]} 53. Kf2 {[%emt 0:01:06]} Bd1 {[%emt 0:00:51]} 54. Nd2 {[%emt 0:01:47] [#] And now Ke1 would win.} Kd4 {[%emt 0:00:04]} 55. Ke1 {[%emt 0:00:06]} Bc2 {[%emt 0:00:13]} 56. h5 {[%emt 0:00:55]} Kc3 {[%emt 0:00:11]} 57. Ke2 {[%emt 0:00:31]} Bd3+ {[%emt 0:01:28]} (57... Bxb3 58. Nxb3 Kxb3 59. h6 Ka3 60. h7 b3 61. h8=Q b2 62. Qb8) 58. Ke3 {[%emt 0:00:25] Strongly threatening Ne4+.} Bh7 {[%emt 0:00:11]} 59. Ke2 {[%emt 0:02:06]} Bd3+ {[%emt 0:00:27]} 60. Ke3 {[%emt 0:00:04] Threatens to win with Ne4+.} Bh7 {[%emt 0:00:04]} 61. h6 {[%emt 0:01:16]} Bg6 {[%emt 0:00:39]} 62. Ke2 {[%emt 0:00:04]} Bd3+ {[%emt 0:00:47]} 63. Kd1 {[%emt 0:00:39]} Kb2 {[%emt 0:01:14]} 64. Nc4+ {[%emt 0:01:24]} Kxb3 {[%emt 0:00:05]} 65. Nxa5+ {[%emt 0:00:15]} Kxa4 {[%emt 0:02:12]} 66. Kd2 {[%emt 0:00:07] Black defended with fortune.  Weighted Error Value: White=0.12 (very precise) /Black=0.14 (very precise)} 1/2-1/2